[Event "*** Titled Tuesday Blitz"]
[Site "Chess.com"]
[Date "2021.02.09"]
[Round "11"]
[White "GianmarcoVaR"]
[Black "ChessQueen"]
[Result "1-0"]
[WhiteElo "2587"]
[BlackElo "2778"]
[TimeControl "180+1"]
[EndTime "12:09:08 PST"]
[Termination "GianmarcoVaR won by resignation"]

1. e4 {[%clk 0:02:59.8]} 1... c6 {[%clk 0:02:59.8]} 2. d3 {[%clk 0:02:59.1]}
2... d5 {[%clk 0:02:59.7]} 3. Nf3 {[%clk 0:02:59.7]} 3... g6 {[%clk 0:02:56.6]}
4. Nc3 {[%clk 0:02:56]} 4... Bg7 {[%clk 0:02:56.6]} 5. Be2 {[%clk 0:02:55.3]}
5... d4 {[%clk 0:02:53.2]} 6. Nb1 {[%clk 0:02:55.1]} 6... c5 {[%clk 0:02:51.2]}
7. O-O {[%clk 0:02:56]} 7... Nc6 {[%clk 0:02:51.5]} 8. a4 {[%clk 0:02:56.5]}
8... Nf6 {[%clk 0:02:48.6]} 9. Na3 {[%clk 0:02:56.6]} 9... O-O {[%clk
0:02:47.8]} 10. Nc4 {[%clk 0:02:57]} 10... Be6 {[%clk 0:02:43.2]} 11. b3 {[%clk
0:02:54]} 11... b6 {[%clk 0:02:41.1]} 12. h3 {[%clk 0:02:52.6]} 12... a6 {[%clk
0:02:40.7]} 13. a5 {[%clk 0:02:50.7]} 13... b5 {[%clk 0:02:39.3]} 14. Nb6 {[%clk
0:02:50.5]} 14... Ra7 {[%clk 0:02:37.7]} 15. Bd2 {[%clk 0:02:50.9]} 15... Nd7
{[%clk 0:02:34.6]} 16. Nd5 {[%clk 0:02:48.7]} 16... Nde5 {[%clk 0:02:30.4]} 17.
Nxe5 {[%clk 0:02:45]} 17... Nxe5 {[%clk 0:02:28]} 18. f4 {[%clk 0:02:45.1]}
18... Bxd5 {[%clk 0:02:22]} 19. exd5 {[%clk 0:02:42.8]} 19... Nd7 {[%clk
0:02:21.9]} 20. b4 {[%clk 0:02:33.2]} 20... cxb4 {[%clk 0:02:15.4]} 21. Bxb4
{[%clk 0:02:32.3]} 21... Nf6 {[%clk 0:02:15.5]} 22. Bf3 {[%clk 0:02:32.1]} 22...
Rc7 {[%clk 0:01:58.3]} 23. d6 {[%clk 0:02:27.2]} 23... exd6 {[%clk 0:01:58.2]}
24. f5 {[%clk 0:02:27.4]} 24... Qd7 {[%clk 0:01:44.3]} 25. Qd2 {[%clk
0:02:23.7]} 25... Qxf5 {[%clk 0:01:38.1]} 26. Bxd6 {[%clk 0:02:23.1]} 26... Qc8
{[%clk 0:01:35.6]} 27. Bxf8 {[%clk 0:02:04.9]} 27... Qxf8 {[%clk 0:01:24.1]} 28.
Rf2 {[%clk 0:02:00.2]} 28... Qd6 {[%clk 0:01:22.8]} 29. Raf1 {[%clk 0:01:59.6]}
29... Nd7 {[%clk 0:01:19.5]} 30. Re2 {[%clk 0:01:49.1]} 30... Ne5 {[%clk
0:01:19.2]} 31. Kh1 {[%clk 0:01:47.2]} 31... b4 {[%clk 0:01:15.1]} 32. Re4
{[%clk 0:01:37]} 32... Qc5 {[%clk 0:01:06]} 33. Bd1 {[%clk 0:01:35.3]} 33... f5
{[%clk 0:00:57.4]} 34. Ree1 {[%clk 0:01:23.4]} 34... Qxa5 {[%clk 0:00:56.9]} 35.
g4 {[%clk 0:01:19.4]} 35... Qd5+ {[%clk 0:00:56.5]} 36. Kg1 {[%clk 0:01:18.8]}
36... fxg4 {[%clk 0:00:52.3]} 37. Qxb4 {[%clk 0:01:16]} 37... Rc8 {[%clk
0:00:38.2]} 38. hxg4 {[%clk 0:00:58.9]} 38... a5 {[%clk 0:00:38.7]} 39. Qe7
{[%clk 0:00:36.8]} 39... a4 {[%clk 0:00:35.7]} 40. Re4 {[%clk 0:00:31.8]} 40...
a3 {[%clk 0:00:35.2]} 41. Qxa3 {[%clk 0:00:31.2]} 41... Qd7 {[%clk 0:00:31.1]}
42. Qa5 {[%clk 0:00:25.8]} 42... Nc6 {[%clk 0:00:28.5]} 43. Qg5 {[%clk
0:00:22.4]} 43... Qd6 {[%clk 0:00:26.9]} 44. Qf4 {[%clk 0:00:19.4]} 44... Qxf4
{[%clk 0:00:27.1]} 45. Rexf4 {[%clk 0:00:19.8]} 45... Ne5 {[%clk 0:00:26.1]} 46.
Re4 {[%clk 0:00:20.3]} 46... Nf7 {[%clk 0:00:22.7]} 47. Kg2 {[%clk 0:00:20]}
47... Ng5 {[%clk 0:00:21.8]} 48. Re7 {[%clk 0:00:18.9]} 48... Bf8 {[%clk
0:00:14.2]} 49. Rd7 {[%clk 0:00:17.1]} 49... Bg7 {[%clk 0:00:14.6]} 50. Re1
{[%clk 0:00:16.3]} 50... Rf8 {[%clk 0:00:13.8]} 51. Ree7 {[%clk 0:00:15.1]}
51... Bf6 {[%clk 0:00:14.2]} 52. Re1 {[%clk 0:00:14.2]} 52... Bg7 {[%clk
0:00:14.4]} 53. Rd5 {[%clk 0:00:13.8]} 53... Nf7 {[%clk 0:00:13.3]} 54. Re7
{[%clk 0:00:12.6]} 54... Bf6 {[%clk 0:00:09.8]} 55. Re6 {[%clk 0:00:11.3]} 55...
Bg7 {[%clk 0:00:09]} 56. Re7 {[%clk 0:00:11.6]} 56... Bf6 {[%clk 0:00:09.2]} 57.
Red7 {[%clk 0:00:12.1]} 57... h6 {[%clk 0:00:07.7]} 58. Rxd4 {[%clk 0:00:10.6]}
58... Bxd4 {[%clk 0:00:07.5]} 59. Rxd4 {[%clk 0:00:11.1]} 59... Re8 {[%clk
0:00:08.1]} 60. Rc4 {[%clk 0:00:09]} 60... Re1 {[%clk 0:00:07.7]} 61. Bf3 {[%clk
0:00:08.9]} 61... Ng5 {[%clk 0:00:07.5]} 62. Rc8+ {[%clk 0:00:08.3]} 62... Kf7
{[%clk 0:00:07.5]} 63. Rc7+ {[%clk 0:00:08.8]} 63... Kf6 {[%clk 0:00:07.8]} 64.
Rc6+ {[%clk 0:00:09.3]} 64... Ke5 {[%clk 0:00:08.2]} 65. Rxg6 {[%clk 0:00:07.8]}
65... Rc1 {[%clk 0:00:08.4]} 66. Rxh6 {[%clk 0:00:04.9]} 66... Kf4 {[%clk
0:00:08.8]} 67. Rf6+ {[%clk 0:00:04.8]} 67... Ke3 {[%clk 0:00:09.3]} 68. Rf5
{[%clk 0:00:03.9]} 68... Rxc2+ {[%clk 0:00:09.3]} 69. Kg3 {[%clk 0:00:04.3]}
69... Ne6 {[%clk 0:00:09]} 70. Re5+ {[%clk 0:00:04.4]} 70... Kd4 {[%clk
0:00:09.4]} 71. Rxe6 {[%clk 0:00:04.9]} 1-0

[Event "*** Titled Tuesday Blitz"]
[Site "Chess.com"]
[Date "2021.02.09"]
[Round "11"]
[White "tylityli"]
[Black "malakismayil"]
[Result "0-1"]
[WhiteElo "2272"]
[BlackElo "2373"]
[TimeControl "180+1"]
[EndTime "12:09:12 PST"]
[Termination "malakismayil won on time"]

1. d4 {[%clk 0:03:00.9]} 1... Nf6 {[%clk 0:02:58.4]} 2. c4 {[%clk 0:03:00.4]}
2... e6 {[%clk 0:02:58.7]} 3. Nc3 {[%clk 0:03:00.4]} 3... Bb4 {[%clk 0:02:55.3]}
4. e3 {[%clk 0:03:00.5]} 4... O-O {[%clk 0:02:53.7]} 5. Ne2 {[%clk 0:03:01.4]}
5... b6 {[%clk 0:02:52.6]} 6. a3 {[%clk 0:03:01]} 6... Bxc3+ {[%clk 0:02:52.2]}
7. Nxc3 {[%clk 0:03:01.9]} 7... Bb7 {[%clk 0:02:53.1]} 8. d5 {[%clk 0:03:01.9]}
8... d6 {[%clk 0:02:51.6]} 9. g3 {[%clk 0:02:59.7]} 9... Nbd7 {[%clk 0:02:50.9]}
10. Bg2 {[%clk 0:02:59.7]} 10... e5 {[%clk 0:02:50.8]} 11. O-O {[%clk
0:02:59.4]} 11... a5 {[%clk 0:02:47.8]} 12. e4 {[%clk 0:02:55.6]} 12... h6
{[%clk 0:02:45.9]} 13. Be3 {[%clk 0:02:53.8]} 13... Ba6 {[%clk 0:02:41.1]} 14.
b3 {[%clk 0:02:52.1]} 14... Nc5 {[%clk 0:02:35.1]} 15. b4 {[%clk 0:02:37.8]}
15... Ncd7 {[%clk 0:02:25.7]} 16. Qb3 {[%clk 0:02:31.9]} 16... Rb8 {[%clk
0:01:51.7]} 17. Rfc1 {[%clk 0:02:19.6]} 17... Ng4 {[%clk 0:01:45.6]} 18. Bd2
{[%clk 0:02:18.4]} 18... f5 {[%clk 0:01:35.5]} 19. h3 {[%clk 0:02:17.9]} 19...
Ngf6 {[%clk 0:00:57.7]} 20. exf5 {[%clk 0:02:16.8]} 20... Nh7 {[%clk 0:00:53]}
21. g4 {[%clk 0:02:14.4]} 21... h5 {[%clk 0:00:52.9]} 22. Ne4 {[%clk 0:02:06.5]}
22... Ndf6 {[%clk 0:00:46.3]} 23. Qg3 {[%clk 0:01:57.2]} 23... Nxe4 {[%clk
0:00:38.8]} 24. Bxe4 {[%clk 0:01:56.8]} 24... Ng5 {[%clk 0:00:34.7]} 25. Bg2
{[%clk 0:01:54.1]} 25... hxg4 {[%clk 0:00:29.3]} 26. hxg4 {[%clk 0:01:51.1]}
26... Qf6 {[%clk 0:00:28.6]} 27. f4 {[%clk 0:01:46.3]} 27... exf4 {[%clk
0:00:25.1]} 28. Qxf4 {[%clk 0:01:45.9]} 28... Nf7 {[%clk 0:00:21.7]} 29. Bc3
{[%clk 0:01:36.7]} 29... Qh4 {[%clk 0:00:16]} 30. Be1 {[%clk 0:01:22.6]} 30...
Qf6 {[%clk 0:00:11.5]} 31. Bc3 {[%clk 0:01:10.2]} 31... Qh4 {[%clk 0:00:10]} 32.
b5 {[%clk 0:01:08.5]} 32... Bb7 {[%clk 0:00:06.8]} 33. Re1 {[%clk 0:01:08.1]}
33... Rbe8 {[%clk 0:00:06.1]} 34. Re6 {[%clk 0:01:06.9]} 34... Bc8 {[%clk
0:00:05.6]} 35. Re3 {[%clk 0:00:55.3]} 35... Bd7 {[%clk 0:00:03.1]} 36. Rae1
{[%clk 0:00:54.2]} 36... Rxe3 {[%clk 0:00:02.3]} 37. Rxe3 {[%clk 0:00:52.8]}
37... Re8 {[%clk 0:00:03.2]} 38. Rxe8+ {[%clk 0:00:51.5]} 38... Bxe8 {[%clk
0:00:04.1]} 39. Qe3 {[%clk 0:00:48.9]} 39... Bd7 {[%clk 0:00:04.2]} 40. Qe2
{[%clk 0:00:39.2]} 40... Kf8 {[%clk 0:00:03.7]} 41. Bd2 {[%clk 0:00:31.6]} 41...
Ne5 {[%clk 0:00:03.4]} 42. Be1 {[%clk 0:00:19.6]} 42... Qxg4 {[%clk 0:00:03.1]}
43. Qxg4 {[%clk 0:00:19.4]} 43... Nxg4 {[%clk 0:00:04]} 44. Bh3 {[%clk
0:00:15.6]} 44... Ne3 {[%clk 0:00:03.9]} 45. Bf1 {[%clk 0:00:12.4]} 45... Bxf5
{[%clk 0:00:03.4]} 46. Kf2 {[%clk 0:00:12.2]} 46... Nxf1 {[%clk 0:00:03]} 47.
Kxf1 {[%clk 0:00:12.3]} 47... Bd3+ {[%clk 0:00:03.7]} 48. Kf2 {[%clk 0:00:12.1]}
48... Bxc4 {[%clk 0:00:04.6]} 49. Ke3 {[%clk 0:00:11.7]} 49... Bxb5 {[%clk
0:00:05]} 50. Kd4 {[%clk 0:00:12.6]} 50... Ke7 {[%clk 0:00:04.6]} 51. Bh4+
{[%clk 0:00:12.3]} 51... Kd7 {[%clk 0:00:04.2]} 52. Bg5 {[%clk 0:00:12.1]} 52...
c6 {[%clk 0:00:03.9]} 53. dxc6+ {[%clk 0:00:11.7]} 53... Kxc6 {[%clk 0:00:04.8]}
54. Be7 {[%clk 0:00:10.6]} 54... Be2 {[%clk 0:00:04.2]} 55. Bg5 {[%clk
0:00:08.5]} 55... b5 {[%clk 0:00:04.3]} 56. Bd2 {[%clk 0:00:07.4]} 56... a4
{[%clk 0:00:02.5]} 57. Bf4 {[%clk 0:00:06.2]} 57... Bc4 {[%clk 0:00:03.4]} 58.
Bg5 {[%clk 0:00:06.2]} 58... g6 {[%clk 0:00:03.8]} 59. Bf4 {[%clk 0:00:06.2]}
59... Kd7 {[%clk 0:00:04.3]} 60. Bg3 {[%clk 0:00:04.4]} 60... Ke6 {[%clk
0:00:05.2]} 61. Ke4 {[%clk 0:00:04.3]} 61... d5+ {[%clk 0:00:04.9]} 62. Kd4
{[%clk 0:00:03.8]} 62... Kf5 {[%clk 0:00:04.9]} 63. Ke3 {[%clk 0:00:04.1]} 63...
g5 {[%clk 0:00:04.9]} 64. Kf3 {[%clk 0:00:04.5]} 64... Bd3 {[%clk 0:00:04.6]}
65. Bd6 {[%clk 0:00:04.1]} 65... Bc4 {[%clk 0:00:05.5]} 66. Bc5 {[%clk
0:00:03.9]} 66... Bb3 {[%clk 0:00:06.4]} 67. Bd4 {[%clk 0:00:03.7]} 67... Bd1+
{[%clk 0:00:06.6]} 68. Ke3 {[%clk 0:00:03.2]} 68... g4 {[%clk 0:00:06.4]} 69.
Bc5 {[%clk 0:00:02.7]} 69... g3 {[%clk 0:00:06.3]} 70. Bd6 {[%clk 0:00:01.6]}
70... Kg4 {[%clk 0:00:05.7]} 0-1

[Event "*** Titled Tuesday Blitz"]
[Site "Chess.com"]
[Date "2021.02.09"]
[Round "11"]
[White "GameOverBro"]
[Black "Skatchkov_V"]
[Result "1-0"]
[WhiteElo "2435"]
[BlackElo "2514"]
[TimeControl "180+1"]
[EndTime "12:09:14 PST"]
[Termination "GameOverBro won by resignation"]

1. e4 {[%clk 0:03:00.9]} 1... e5 {[%clk 0:02:59.5]} 2. Nf3 {[%clk 0:03:00.4]}
2... d5 {[%clk 0:03:00.1]} 3. exd5 {[%clk 0:02:59.6]} 3... e4 {[%clk 0:03:01]}
4. Qe2 {[%clk 0:02:59.5]} 4... Nf6 {[%clk 0:03:01]} 5. Nc3 {[%clk 0:02:55.1]}
5... Be7 {[%clk 0:03:01.6]} 6. Nxe4 {[%clk 0:02:55]} 6... O-O {[%clk 0:03:02.4]}
7. Nxf6+ {[%clk 0:02:52.6]} 7... Bxf6 {[%clk 0:03:03.3]} 8. Qd1 {[%clk
0:02:52.8]} 8... Qxd5 {[%clk 0:03:03.7]} 9. Be2 {[%clk 0:02:51.9]} 9... c5
{[%clk 0:03:01.7]} 10. O-O {[%clk 0:02:51.1]} 10... Nc6 {[%clk 0:03:02.5]} 11.
d3 {[%clk 0:02:50]} 11... Bg4 {[%clk 0:03:02.1]} 12. Be3 {[%clk 0:02:46.2]}
12... Rae8 {[%clk 0:03:02.4]} 13. h3 {[%clk 0:02:45.6]} 13... Bh5 {[%clk
0:03:02.3]} 14. c3 {[%clk 0:02:45.1]} 14... Ne7 {[%clk 0:02:54.3]} 15. g4 {[%clk
0:02:33.8]} 15... Bg6 {[%clk 0:02:54]} 16. Qb3 {[%clk 0:02:34]} 16... Qxb3
{[%clk 0:02:53.5]} 17. axb3 {[%clk 0:02:33.6]} 17... Nd5 {[%clk 0:02:54.4]} 18.
Bxc5 {[%clk 0:02:28.4]} 18... Rxe2 {[%clk 0:02:55.2]} 19. Bxf8 {[%clk
0:02:27.9]} 19... Kxf8 {[%clk 0:02:55.3]} 20. g5 {[%clk 0:02:23.4]} 20... Bd8
{[%clk 0:02:42.5]} 21. Rxa7 {[%clk 0:02:21.3]} 21... Rxb2 {[%clk 0:02:34.1]} 22.
Ra8 {[%clk 0:02:08.9]} 22... Ke7 {[%clk 0:02:33.9]} 23. Re1+ {[%clk 0:02:09.2]}
23... Kd7 {[%clk 0:02:33.8]} 24. Ne5+ {[%clk 0:02:09.4]} 24... Kc7 {[%clk
0:02:34.3]} 25. Nc4 {[%clk 0:01:58.6]} 25... Rxb3 {[%clk 0:02:07]} 26. Re8
{[%clk 0:01:55.8]} 26... Rb1+ {[%clk 0:01:47.5]} 27. Kh2 {[%clk 0:01:51.3]}
27... Be7 {[%clk 0:01:20.8]} 28. Rac8+ {[%clk 0:01:45.8]} 28... Kd7 {[%clk
0:01:20.9]} 29. Ne5+ {[%clk 0:01:42.4]} 29... Ke6 {[%clk 0:01:21.2]} 30. Nxg6
{[%clk 0:01:26.2]} 30... hxg6 {[%clk 0:01:21.7]} 31. c4 {[%clk 0:01:24.2]} 31...
Nb6 {[%clk 0:01:22.3]} 32. Rc7 {[%clk 0:01:23.1]} 32... Nd7 {[%clk 0:01:23]} 33.
d4 {[%clk 0:01:12.7]} 33... Kd6 {[%clk 0:01:23.2]} 34. Rcc8 {[%clk 0:00:57.7]}
34... Bxg5 {[%clk 0:01:23.3]} 35. c5+ {[%clk 0:00:54.4]} 35... Kd5 {[%clk
0:01:23.7]} 36. Kg3 {[%clk 0:00:48.3]} 36... Rb4 {[%clk 0:01:15.4]} 37. Rc7
{[%clk 0:00:47.4]} 37... Nf6 {[%clk 0:01:06.8]} 38. Re5+ {[%clk 0:00:46.1]}
38... Kxd4 {[%clk 0:01:04.7]} 39. Rxg5 {[%clk 0:00:38.1]} 39... Ne4+ {[%clk
0:01:03.9]} 40. Kg4 {[%clk 0:00:37.4]} 40... Rb1 {[%clk 0:00:35.6]} 41. Kf4
{[%clk 0:00:26.2]} 41... Nxg5 {[%clk 0:00:21.6]} 42. Kxg5 {[%clk 0:00:27.1]}
42... Rg1+ {[%clk 0:00:09]} 43. Kf4 {[%clk 0:00:26.6]} 43... f6 {[%clk 0:00:08]}
44. Rxb7 {[%clk 0:00:24.8]} 44... Kxc5 {[%clk 0:00:08.5]} 45. Rxg7 {[%clk
0:00:24.7]} 45... Kd5 {[%clk 0:00:09.4]} 46. Re7 {[%clk 0:00:24.8]} 46... Kd6
{[%clk 0:00:09.6]} 47. Re8 {[%clk 0:00:25]} 47... Kd5 {[%clk 0:00:09.9]} 48. f3
{[%clk 0:00:23.9]} 48... Kd6 {[%clk 0:00:10]} 49. h4 {[%clk 0:00:21.6]} 49...
Kd5 {[%clk 0:00:09.4]} 50. Re2 {[%clk 0:00:19.6]} 50... g5+ {[%clk 0:00:08.9]}
51. hxg5 {[%clk 0:00:19.4]} 51... Rxg5 {[%clk 0:00:09.8]} 52. Re8 {[%clk
0:00:17.9]} 52... Kd6 {[%clk 0:00:10]} 53. Re1 {[%clk 0:00:17.5]} 53... Rb5
{[%clk 0:00:09.2]} 54. Kg4 {[%clk 0:00:16.2]} 54... Rg5+ {[%clk 0:00:09.6]} 55.
Kf4 {[%clk 0:00:16.4]} 55... Rc5 {[%clk 0:00:09.8]} 56. Re8 {[%clk 0:00:15.2]}
56... Rg5 {[%clk 0:00:09.5]} 57. Re2 {[%clk 0:00:12.9]} 57... Rc5 {[%clk
0:00:09.2]} 58. Kg4 {[%clk 0:00:12.8]} 58... Rg5+ {[%clk 0:00:09]} 59. Kh4
{[%clk 0:00:13.2]} 59... Kd5 {[%clk 0:00:08.5]} 60. Re8 {[%clk 0:00:12.7]} 60...
Re5 {[%clk 0:00:07.3]} 61. Rf8 {[%clk 0:00:11]} 61... Re6 {[%clk 0:00:06.6]} 62.
Kg4 {[%clk 0:00:10.2]} 62... Ke5 {[%clk 0:00:06.8]} 63. f4+ {[%clk 0:00:10.6]}
63... Ke4 {[%clk 0:00:07.4]} 64. Ra8 {[%clk 0:00:10.5]} 64... f5+ {[%clk
0:00:04.1]} 65. Kg5 {[%clk 0:00:10.2]} 65... Re7 {[%clk 0:00:02.4]} 66. Ra4+
{[%clk 0:00:10.1]} 66... Kd5 {[%clk 0:00:02.3]} 67. Kxf5 {[%clk 0:00:08.9]}
67... Rf7+ {[%clk 0:00:03.1]} 68. Kg6 {[%clk 0:00:08.8]} 68... Ke6 {[%clk
0:00:03.6]} 69. f5+ {[%clk 0:00:07.7]} 69... Ke7 {[%clk 0:00:03]} 70. Ra7+
{[%clk 0:00:07.3]} 1-0

[Event "*** Titled Tuesday Blitz"]
[Site "Chess.com"]
[Date "2021.02.09"]
[Round "11"]
[White "bsnsun"]
[Black "sokidze"]
[Result "0-1"]
[WhiteElo "2442"]
[BlackElo "2538"]
[TimeControl "180+1"]
[EndTime "12:09:20 PST"]
[Termination "sokidze won by checkmate"]

1. d4 {[%clk 0:03:00.9]} 1... Nf6 {[%clk 0:03:00.1]} 2. c4 {[%clk 0:03:00]} 2...
e6 {[%clk 0:03:00.4]} 3. Nc3 {[%clk 0:03:00]} 3... Bb4 {[%clk 0:03:00.4]} 4. Qc2
{[%clk 0:03:00.3]} 4... d5 {[%clk 0:03:00.6]} 5. a3 {[%clk 0:02:59.4]} 5...
Bxc3+ {[%clk 0:02:59.6]} 6. Qxc3 {[%clk 0:03:00.3]} 6... O-O {[%clk 0:02:59.9]}
7. Bg5 {[%clk 0:02:58.1]} 7... dxc4 {[%clk 0:02:58.2]} 8. Qxc4 {[%clk
0:02:57.9]} 8... b6 {[%clk 0:02:58.6]} 9. Nf3 {[%clk 0:02:56.9]} 9... Ba6 {[%clk
0:02:58.6]} 10. Qc2 {[%clk 0:02:56.4]} 10... Nbd7 {[%clk 0:02:52.1]} 11. g3
{[%clk 0:02:56.6]} 11... h6 {[%clk 0:02:31.2]} 12. Bf4 {[%clk 0:02:53.6]} 12...
Nd5 {[%clk 0:02:29.5]} 13. Bd2 {[%clk 0:02:52.2]} 13... c5 {[%clk 0:02:16.9]}
14. Bg2 {[%clk 0:02:48.6]} 14... cxd4 {[%clk 0:01:57.2]} 15. Nxd4 {[%clk
0:02:47.7]} 15... Rc8 {[%clk 0:01:57.1]} 16. Qd1 {[%clk 0:02:46.1]} 16... Qf6
{[%clk 0:01:51.7]} 17. Nf3 {[%clk 0:02:27]} 17... Qxb2 {[%clk 0:01:48.7]} 18.
O-O {[%clk 0:02:26.8]} 18... Nc5 {[%clk 0:01:45]} 19. Re1 {[%clk 0:00:56.2]}
19... Rfd8 {[%clk 0:01:41.3]} 20. Qc1 {[%clk 0:00:55.7]} 20... Qf6 {[%clk
0:01:28.8]} 21. Qb1 {[%clk 0:00:52.9]} 21... Nc3 {[%clk 0:01:14.5]} 22. Bxc3
{[%clk 0:00:50.1]} 22... Qxc3 {[%clk 0:01:14.5]} 23. Qb4 {[%clk 0:00:49]} 23...
Nb3 {[%clk 0:00:51.1]} 24. Rab1 {[%clk 0:00:30.2]} 24... Qxb4 {[%clk 0:00:50.9]}
25. axb4 {[%clk 0:00:30.1]} 25... Bc4 {[%clk 0:00:45.8]} 26. Ne5 {[%clk
0:00:28.2]} 26... Nd4 {[%clk 0:00:44.3]} 27. e3 {[%clk 0:00:24]} 27... Nf5
{[%clk 0:00:28]} 28. Nc6 {[%clk 0:00:23.1]} 28... Rd7 {[%clk 0:00:22]} 29. b5
{[%clk 0:00:22.8]} 29... Bd5 {[%clk 0:00:14.2]} 30. Bxd5 {[%clk 0:00:19.9]}
30... exd5 {[%clk 0:00:15.1]} 31. Ra1 {[%clk 0:00:20.3]} 31... Rcc7 {[%clk
0:00:14.7]} 32. Red1 {[%clk 0:00:16.7]} 32... Kf8 {[%clk 0:00:13.7]} 33. Ne5
{[%clk 0:00:15.3]} 33... Rd6 {[%clk 0:00:08.8]} 34. Nc6 {[%clk 0:00:15.4]} 34...
Ne7 {[%clk 0:00:08.4]} 35. Nxa7 {[%clk 0:00:12.5]} 35... Rdd7 {[%clk 0:00:08.7]}
36. Nc6 {[%clk 0:00:12.5]} 36... Nxc6 {[%clk 0:00:09.2]} 37. bxc6 {[%clk
0:00:13.4]} 37... Rxc6 {[%clk 0:00:10.1]} 38. Ra8+ {[%clk 0:00:13.5]} 38... Ke7
{[%clk 0:00:10.4]} 39. Rg8 {[%clk 0:00:14.1]} 39... g6 {[%clk 0:00:09.3]} 40.
Rh8 {[%clk 0:00:13.9]} 40... h5 {[%clk 0:00:09.5]} 41. h3 {[%clk 0:00:14.1]}
41... Rb7 {[%clk 0:00:08.8]} 42. g4 {[%clk 0:00:14.3]} 42... hxg4 {[%clk
0:00:08.7]} 43. hxg4 {[%clk 0:00:15.2]} 43... Rd6 {[%clk 0:00:09.1]} 44. Rc8
{[%clk 0:00:13.4]} 44... b5 {[%clk 0:00:07.5]} 45. Rb1 {[%clk 0:00:11.5]} 45...
b4 {[%clk 0:00:07.3]} 46. Rb3 {[%clk 0:00:12]} 46... Ra6 {[%clk 0:00:06.1]} 47.
Rc1 {[%clk 0:00:12]} 47... Ra3 {[%clk 0:00:04.9]} 48. Rcb1 {[%clk 0:00:12]}
48... Rxb3 {[%clk 0:00:05.2]} 49. Rxb3 {[%clk 0:00:12.9]} 49... Kd6 {[%clk
0:00:05.9]} 50. Kf1 {[%clk 0:00:13.3]} 50... Kc5 {[%clk 0:00:06.5]} 51. Ke2
{[%clk 0:00:13.4]} 51... Kc4 {[%clk 0:00:07.1]} 52. Rb1 {[%clk 0:00:13.7]} 52...
b3 {[%clk 0:00:07.6]} 53. Kd2 {[%clk 0:00:14]} 53... d4 {[%clk 0:00:05.6]} 54.
Rc1+ {[%clk 0:00:12.3]} 54... Kd5 {[%clk 0:00:05.6]} 55. Kd3 {[%clk 0:00:09.8]}
55... dxe3 {[%clk 0:00:06]} 56. Kxe3 {[%clk 0:00:08.3]} 56... b2 {[%clk
0:00:06.6]} 57. Rb1 {[%clk 0:00:08.3]} 57... Kc4 {[%clk 0:00:07.2]} 58. Kd2
{[%clk 0:00:08.4]} 58... Kb3 {[%clk 0:00:07.5]} 59. Ke3 {[%clk 0:00:04.2]} 59...
Kc2 {[%clk 0:00:07.2]} 60. Re1 {[%clk 0:00:04.1]} 60... b1=Q {[%clk 0:00:07.4]}
61. Rxb1 {[%clk 0:00:04.6]} 61... Kxb1 {[%clk 0:00:08]} 62. Kf4 {[%clk
0:00:05.1]} 62... Kc2 {[%clk 0:00:08.4]} 63. Kg5 {[%clk 0:00:05.1]} 63... Kd3
{[%clk 0:00:08.7]} 64. f4 {[%clk 0:00:05.7]} 64... Ke4 {[%clk 0:00:09.2]} 65. f5
{[%clk 0:00:06.3]} 65... gxf5 {[%clk 0:00:09.8]} 66. gxf5 {[%clk 0:00:07.2]}
66... Rb5 {[%clk 0:00:09.7]} 67. Kh6 {[%clk 0:00:04.6]} 67... Rxf5 {[%clk
0:00:09.8]} 68. Kg7 {[%clk 0:00:05.5]} 68... Rf1 {[%clk 0:00:10.1]} 69. Kh6
{[%clk 0:00:05.7]} 69... f5 {[%clk 0:00:10.5]} 70. Kg5 {[%clk 0:00:06.5]} 70...
f4 {[%clk 0:00:11.1]} 71. Kh4 {[%clk 0:00:07.1]} 71... Rg1 {[%clk 0:00:10.7]}
72. Kh3 {[%clk 0:00:06.6]} 72... Rg8 {[%clk 0:00:10.8]} 73. Kh2 {[%clk
0:00:06.5]} 73... f3 {[%clk 0:00:11.3]} 74. Kh3 {[%clk 0:00:06.7]} 74... f2
{[%clk 0:00:10.8]} 75. Kh2 {[%clk 0:00:07.2]} 75... Kf4 {[%clk 0:00:10]} 76. Kh3
{[%clk 0:00:06.3]} 76... f1=Q+ {[%clk 0:00:10.1]} 77. Kh4 {[%clk 0:00:06.8]}
77... Qh1# {[%clk 0:00:10.3]} 0-1